[Event "Titled Tuesday Blitz February 22 Late 2022"]
[White "Janaszak, Dawid"]
[Black "Naroditsky, Daniel"]
[WhiteFideId "1119206"]
[BlackFideId "2026961"]
[WhiteElo "2199"]
[BlackElo "2608"]
[Result "0-1"]
[Round "01"]
[TimeControl "180+1"]
[Date "2022.02.22"]
[WhiteClock "0:00:05"]
[BlackClock "0:00:06"]

1. e4 {[%clk 0:03:00]}  e5 {[%clk 0:02:59]} 2. Ne2 {[%clk 0:02:59]}  Nf6 {[%clk 0:02:59]} 3. f4 {[%clk 0:02:59]}  exf4 {[%clk 0:02:50]} 4. Nxf4 {[%clk 0:03:00]}  Nc6 {[%clk 0:02:47]} 5. Nc3 {[%clk 0:02:57]}  Bc5 {[%clk 0:02:47]} 6. e5 {[%clk 0:02:41]}  Qe7 {[%clk 0:02:43]} 7. d4 {[%clk 0:02:14]}  Bxd4 {[%clk 0:02:13]} 8. Be2 {[%clk 0:01:45]}  Qxe5 {[%clk 0:02:09]} 9. Nd3 {[%clk 0:01:41]}  Bxc3+ {[%clk 0:01:51]} 10. bxc3 {[%clk 0:01:42]}  Qxc3+ {[%clk 0:01:52]} 11. Bd2 {[%clk 0:01:42]}  Qd4 {[%clk 0:01:52]} 12. c3 {[%clk 0:01:37]}  Qh4+ {[%clk 0:01:50]} 13. g3 {[%clk 0:01:36]}  Qe4 {[%clk 0:01:44]} 14. O-O {[%clk 0:01:31]}  O-O {[%clk 0:01:44]} 15. Rxf6 {[%clk 0:01:28]}  gxf6 {[%clk 0:01:44]} 16. Nf4 {[%clk 0:01:28]}  Ne5 {[%clk 0:01:43]} 17. c4 {[%clk 0:01:16]}  d6 {[%clk 0:01:25]} 18. Nd5 {[%clk 0:01:09]}  Qd4+ {[%clk 0:01:25]} 19. Kg2 {[%clk 0:01:02]}  Be6 {[%clk 0:01:15]} 20. Nxf6+ {[%clk 0:00:55]}  Kh8 {[%clk 0:01:16]} 21. Qc2 {[%clk 0:00:44]}  Kg7 {[%clk 0:00:48]} 22. Qxh7+ {[%clk 0:00:38]}  Kxf6 {[%clk 0:00:48]} 23. Bg5+ {[%clk 0:00:17]}  Kxg5 {[%clk 0:00:48]} 24. Rf1 {[%clk 0:00:18]}  Bh3+ {[%clk 0:00:32]} 25. Kxh3 {[%clk 0:00:16]}  f5 {[%clk 0:00:31]} 26. Qh5+ {[%clk 0:00:10]}  Kf6 {[%clk 0:00:31]} 27. Rxf5+ {[%clk 0:00:08]}  Ke7 {[%clk 0:00:32]} 28. Qg5+ {[%clk 0:00:06]}  Kd7 {[%clk 0:00:33]} 29. Qg7+ {[%clk 0:00:05]}  Kc6 {[%clk 0:00:33]} 30. Rxf8 {[%clk 0:00:05]}  Rxf8 {[%clk 0:00:32]} 31. Qxf8 {[%clk 0:00:06]}  Qe4 {[%clk 0:00:27]} 32. Qe8+ {[%clk 0:00:06]}  Kc5 {[%clk 0:00:28]} 33. Qb5+ {[%clk 0:00:06]}  Kd4 {[%clk 0:00:29]} 34. Qb2+ {[%clk 0:00:06]}  Ke3 {[%clk 0:00:26]} 35. Bd1 {[%clk 0:00:06]}  Qh7+ {[%clk 0:00:23]} 36. Kg2 {[%clk 0:00:05]}  Qe4+ {[%clk 0:00:24]} 37. Kh3 {[%clk 0:00:05]}  Nxc4 {[%clk 0:00:19]} 38. Qc3+ {[%clk 0:00:04]}  Qd3 {[%clk 0:00:19]} 39. Qe1+ {[%clk 0:00:04]}  Kd4 {[%clk 0:00:19]} 40. Be2 {[%clk 0:00:05]}  Qh7+ {[%clk 0:00:16]} 41. Kg2 {[%clk 0:00:05]}  Qe4+ {[%clk 0:00:17]} 42. Kh3 {[%clk 0:00:05]}  Qf5+ {[%clk 0:00:13]} 43. g4 {[%clk 0:00:05]}  Qh7+ {[%clk 0:00:11]} 44. Kg3 {[%clk 0:00:05]}  Qe4 {[%clk 0:00:08]} 45. Qa1+ {[%clk 0:00:04]}  Kc5 {[%clk 0:00:07]} 46. Bf3 {[%clk 0:00:04]}  Qe3 {[%clk 0:00:05]} 47. Qg7 {[%clk 0:00:04]}  Qe5+ {[%clk 0:00:03]} 48. Qxe5+ {[%clk 0:00:04]}  Nxe5 {[%clk 0:00:03]} 49. h4 {[%clk 0:00:05]}  Nxf3 {[%clk 0:00:02]} 50. Kxf3 {[%clk 0:00:05]}  Kd5 {[%clk 0:00:03]} 51. h5 {[%clk 0:00:05]}  Ke6 {[%clk 0:00:03]} 52. h6 {[%clk 0:00:05]}  Kf6 {[%clk 0:00:04]} 53. g5+ {[%clk 0:00:06]}  Kg6 {[%clk 0:00:04]} 54. Ke4 {[%clk 0:00:06]}  c5 {[%clk 0:00:04]} 55. a4 {[%clk 0:00:05]}  c4 {[%clk 0:00:04]} 56. Kd4 {[%clk 0:00:06]}  d5 {[%clk 0:00:04]} 57. a5 {[%clk 0:00:06]}  b5 {[%clk 0:00:03]} 58. axb6 {[%clk 0:00:05]}  axb6 {[%clk 0:00:03]} 59. Kc3 {[%clk 0:00:04]}  b5 {[%clk 0:00:04]} 60. Kd4 {[%clk 0:00:05]}  b4 {[%clk 0:00:04]} 61. Ke3 {[%clk 0:00:05]}  b3 {[%clk 0:00:04]} 62. Kd2 {[%clk 0:00:04]}  d4 {[%clk 0:00:05]} 63. Kc1 {[%clk 0:00:04]}  c3 {[%clk 0:00:04]} 64. Kd1 {[%clk 0:00:04]}  d3 {[%clk 0:00:04]} 65. Kc1 {[%clk 0:00:05]}  d2+ {[%clk 0:00:05]} 66. Kd1 {[%clk 0:00:05]}  b2 {[%clk 0:00:06]} 0-1


[Site "https://www.chess.com"]

[Event "Titled Tuesday Blitz February 22 Late 2022"]
[White "Jessel, Stephen"]
[Black "Steenbekkers, Franck"]
[WhiteFideId "628859"]
[BlackFideId "1004220"]
[WhiteElo "2268"]
[BlackElo "2141"]
[Result "0-1"]
[Round "01"]
[TimeControl "180+1"]
[Date "2022.02.23"]
[WhiteClock "0:00:31"]
[BlackClock "0:01:22"]

1. Nf3 {[%clk 0:02:59]}  Nf6 {[%clk 0:02:58]} 2. c4 {[%clk 0:02:58]}  g6 {[%clk 0:02:57]} 3. b4 {[%clk 0:02:58]}  Bg7 {[%clk 0:02:57]} 4. Bb2 {[%clk 0:02:59]}  a5 {[%clk 0:02:56]} 5. b5 {[%clk 0:02:58]}  d6 {[%clk 0:02:53]} 6. g3 {[%clk 0:02:59]}  e5 {[%clk 0:02:52]} 7. Bg2 {[%clk 0:02:59]}  c6 {[%clk 0:02:51]} 8. a4 {[%clk 0:02:55]}  O-O {[%clk 0:02:48]} 9. O-O {[%clk 0:02:55]}  e4 {[%clk 0:02:47]} 10. Nd4 {[%clk 0:02:53]}  d5 {[%clk 0:02:46]} 11. cxd5 {[%clk 0:02:39]}  cxd5 {[%clk 0:02:43]} 12. d3 {[%clk 0:02:38]}  Re8 {[%clk 0:02:37]} 13. dxe4 {[%clk 0:02:05]}  Nxe4 {[%clk 0:02:34]} 14. e3 {[%clk 0:01:57]}  Nd7 {[%clk 0:02:33]} 15. Qc2 {[%clk 0:01:35]}  Nb6 {[%clk 0:02:31]} 16. Na3 {[%clk 0:01:14]}  Bd7 {[%clk 0:02:25]} 17. Rfc1 {[%clk 0:01:07]}  Rc8 {[%clk 0:02:10]} 18. Qd1 {[%clk 0:01:07]}  Qe7 {[%clk 0:01:55]} 19. Rab1 {[%clk 0:00:56]}  Nc4 {[%clk 0:01:45]} 20. Nxc4 {[%clk 0:00:53]}  Rxc4 {[%clk 0:01:41]} 21. Ne2 {[%clk 0:00:41]}  Nxf2 {[%clk 0:01:26]} 22. Kxf2 {[%clk 0:00:31]}  Qxe3+ {[%clk 0:01:24]} 23. Kf1 {[%clk 0:00:31]}  Bg4 {[%clk 0:01:22]} 0-1


[Site "https://www.chess.com"]

[Event "Titled Tuesday Blitz February 22 Late 2022"]
[White "Khanin, Semen"]
[Black "Zong, Davis"]
[WhiteFideId "4111990"]
[BlackFideId "30903955"]
[WhiteElo "2442"]
[BlackElo "2061"]
[Result "1-0"]
[Round "01"]
[TimeControl "180+1"]
[Date "2022.02.23"]
[WhiteClock "0:01:21"]
[BlackClock "0:00:04"]

1. e4 {[%clk 0:03:00]}  e5 {[%clk 0:02:59]} 2. Nf3 {[%clk 0:02:59]}  Nc6 {[%clk 0:02:59]} 3. Bb5 {[%clk 0:03:00]}  a6 {[%clk 0:02:59]} 4. Ba4 {[%clk 0:03:00]}  Nf6 {[%clk 0:02:59]} 5. O-O {[%clk 0:03:00]}  Be7 {[%clk 0:02:59]} 6. Re1 {[%clk 0:03:00]}  b5 {[%clk 0:02:59]} 7. Bb3 {[%clk 0:03:00]}  O-O {[%clk 0:03:00]} 8. a4 {[%clk 0:02:57]}  Rb8 {[%clk 0:02:58]} 9. axb5 {[%clk 0:02:56]}  axb5 {[%clk 0:02:59]} 10. d3 {[%clk 0:02:54]}  d6 {[%clk 0:02:56]} 11. Nc3 {[%clk 0:02:54]}  Bg4 {[%clk 0:02:53]} 12. Be3 {[%clk 0:02:53]}  Nd4 {[%clk 0:02:46]} 13. Bxd4 {[%clk 0:02:53]}  exd4 {[%clk 0:02:47]} 14. Nd5 {[%clk 0:02:53]}  Nxd5 {[%clk 0:02:43]} 15. Bxd5 {[%clk 0:02:53]}  Bf6 {[%clk 0:02:36]} 16. h3 {[%clk 0:02:52]}  Be6 {[%clk 0:02:33]} 17. Bxe6 {[%clk 0:02:50]}  fxe6 {[%clk 0:02:34]} 18. e5 {[%clk 0:02:49]}  Bxe5 {[%clk 0:02:26]} 19. Nxe5 {[%clk 0:02:48]}  dxe5 {[%clk 0:02:27]} 20. Qe2 {[%clk 0:02:29]}  Qh4 {[%clk 0:02:06]} 21. Ra6 {[%clk 0:02:21]}  Rf6 {[%clk 0:01:54]} 22. f3 {[%clk 0:02:12]}  Qg3 {[%clk 0:01:07]} 23. Qxe5 {[%clk 0:02:09]}  Rxf3 {[%clk 0:01:07]} 24. Qxg3 {[%clk 0:02:09]}  Rxg3 {[%clk 0:01:07]} 25. Raxe6 {[%clk 0:02:02]}  Rg6 {[%clk 0:00:57]} 26. Rxg6 {[%clk 0:02:01]}  hxg6 {[%clk 0:00:58]} 27. Re6 {[%clk 0:02:00]}  Ra8 {[%clk 0:00:51]} 28. Rc6 {[%clk 0:01:56]}  Ra7 {[%clk 0:00:35]} 29. Kf2 {[%clk 0:01:56]}  Kf7 {[%clk 0:00:34]} 30. Kf3 {[%clk 0:01:56]}  Rb7 {[%clk 0:00:21]} 31. Ke4 {[%clk 0:01:54]}  Ra7 {[%clk 0:00:10]} 32. Kxd4 {[%clk 0:01:52]}  Ra1 {[%clk 0:00:10]} 33. Rxc7+ {[%clk 0:01:52]}  Kf6 {[%clk 0:00:11]} 34. c4 {[%clk 0:01:25]}  bxc4 {[%clk 0:00:04]} 35. dxc4 {[%clk 0:01:25]}  Rb1 {[%clk 0:00:03]} 36. Rb7 {[%clk 0:01:22]}  Rg1 {[%clk 0:00:02]} 37. b4 {[%clk 0:01:22]}  Rxg2 {[%clk 0:00:03]} 38. b5 {[%clk 0:01:23]}  Rg3 {[%clk 0:00:02]} 39. b6 {[%clk 0:01:22]}  Rxh3 {[%clk 0:00:02]} 40. c5 {[%clk 0:01:22]}  Rh4+ {[%clk 0:00:02]} 41. Kd5 {[%clk 0:01:22]}  Rh5+ {[%clk 0:00:03]} 42. Kd6 {[%clk 0:01:22]}  Rh1 {[%clk 0:00:04]} 43. Rb8 {[%clk 0:01:22]}  Rd1+ {[%clk 0:00:04]} 44. Kc7 {[%clk 0:01:21]}  g5 {[%clk 0:00:04]} 45. b7 {[%clk 0:01:21]}  g4 {[%clk 0:00:04]} 46. Rf8+ {[%clk 0:01:21]}  Ke7 {[%clk 0:00:04]} 1-0


[Site "https://www.chess.com"]

[Event "Titled Tuesday Blitz February 22 Late 2022"]
[White "Klukin, Kirill"]
[Black "Todorovic, Bojan"]
[WhiteFideId "24199273"]
[BlackFideId "917087"]
[WhiteElo "2324"]
[BlackElo "2266"]
[Result "1-0"]
[Round "01"]
[TimeControl "180+1"]
[Date "2022.02.23"]
[WhiteClock "0:02:00"]
[BlackClock "0:00:45"]

1. d4 {[%clk 0:03:00]}  Nf6 {[%clk 0:02:59]} 2. Nf3 {[%clk 0:02:58]}  g6 {[%clk 0:02:58]} 3. e3 {[%clk 0:02:58]}  Bg7 {[%clk 0:02:58]} 4. Be2 {[%clk 0:02:59]}  O-O {[%clk 0:02:58]} 5. O-O {[%clk 0:02:59]}  b6 {[%clk 0:02:57]} 6. b3 {[%clk 0:02:59]}  Bb7 {[%clk 0:02:58]} 7. Bb2 {[%clk 0:03:00]}  e6 {[%clk 0:02:57]} 8. c4 {[%clk 0:02:59]}  c5 {[%clk 0:02:57]} 9. Nc3 {[%clk 0:02:58]}  Nc6 {[%clk 0:02:45]} 10. dxc5 {[%clk 0:02:44]}  bxc5 {[%clk 0:02:45]} 11. Nb5 {[%clk 0:02:45]}  d5 {[%clk 0:02:34]} 12. cxd5 {[%clk 0:02:44]}  exd5 {[%clk 0:02:33]} 13. Rc1 {[%clk 0:02:44]}  Ne4 {[%clk 0:02:30]} 14. Bxg7 {[%clk 0:02:43]}  Kxg7 {[%clk 0:02:30]} 15. Bd3 {[%clk 0:02:40]}  a6 {[%clk 0:02:26]} 16. Nc3 {[%clk 0:02:34]}  Nxc3 {[%clk 0:02:16]} 17. Rxc3 {[%clk 0:02:35]}  Qe7 {[%clk 0:02:17]} 18. Qd2 {[%clk 0:02:25]}  Rac8 {[%clk 0:02:01]} 19. Rfc1 {[%clk 0:02:25]}  Nb4 {[%clk 0:01:50]} 20. Be2 {[%clk 0:02:23]}  c4 {[%clk 0:01:06]} 21. bxc4 {[%clk 0:02:14]}  dxc4 {[%clk 0:01:06]} 22. Rxc4 {[%clk 0:02:14]}  Rfd8 {[%clk 0:01:01]} 23. Qb2+ {[%clk 0:02:07]}  Kg8 {[%clk 0:00:57]} 24. Rxc8 {[%clk 0:02:00]}  Bxc8 {[%clk 0:00:48]} 25. Nd4 {[%clk 0:02:00]}  Nd5 {[%clk 0:00:45]} 26. Nc6 {[%clk 0:02:00]} 1-0


[Site "https://www.chess.com"]

[Event "Titled Tuesday Blitz February 22 Late 2022"]
[White "Kohler, Aran"]
[Black "Papp, Levente"]
[WhiteFideId "1002856"]
[BlackFideId "751243"]
[WhiteElo "2241"]
[BlackElo "2308"]
[Result "1-0"]
[Round "01"]
[TimeControl "180+1"]
[Date "2022.02.23"]
[WhiteClock "0:00:34"]
[BlackClock "0:00:09"]

1. d4 {[%clk 0:02:57]}  Nf6 {[%clk 0:02:59]} 2. Bg5 {[%clk 0:02:56]}  e6 {[%clk 0:02:55]} 3. Nd2 {[%clk 0:02:54]}  h6 {[%clk 0:02:50]} 4. Bh4 {[%clk 0:02:53]}  d5 {[%clk 0:02:46]} 5. e3 {[%clk 0:02:50]}  Bd6 {[%clk 0:02:39]} 6. c3 {[%clk 0:02:48]}  O-O {[%clk 0:02:36]} 7. f4 {[%clk 0:02:47]}  c5 {[%clk 0:02:26]} 8. Nh3 {[%clk 0:02:47]}  b6 {[%clk 0:02:07]} 9. Bd3 {[%clk 0:02:38]}  Ba6 {[%clk 0:02:07]} 10. Bxa6 {[%clk 0:02:34]}  Nxa6 {[%clk 0:02:08]} 11. Qe2 {[%clk 0:02:32]}  Nc7 {[%clk 0:02:04]} 12. O-O {[%clk 0:02:31]}  Be7 {[%clk 0:02:02]} 13. Bxf6 {[%clk 0:02:29]}  Bxf6 {[%clk 0:02:01]} 14. Nf3 {[%clk 0:02:29]}  Qc8 {[%clk 0:01:57]} 15. Ne5 {[%clk 0:02:28]}  Qa6 {[%clk 0:01:39]} 16. Qxa6 {[%clk 0:02:24]}  Nxa6 {[%clk 0:01:40]} 17. Nd7 {[%clk 0:02:23]}  Rfd8 {[%clk 0:01:40]} 18. Nxf6+ {[%clk 0:02:23]}  gxf6 {[%clk 0:01:41]} 19. Rae1 {[%clk 0:02:15]}  f5 {[%clk 0:01:37]} 20. Nf2 {[%clk 0:02:14]}  Kg7 {[%clk 0:01:23]} 21. Nd3 {[%clk 0:02:14]}  Rac8 {[%clk 0:01:21]} 22. Rf3 {[%clk 0:02:12]}  f6 {[%clk 0:01:16]} 23. Rg3+ {[%clk 0:02:08]}  Kh7 {[%clk 0:01:15]} 24. Rf1 {[%clk 0:02:05]}  c4 {[%clk 0:01:14]} 25. Ne1 {[%clk 0:02:01]}  b5 {[%clk 0:01:13]} 26. a3 {[%clk 0:02:01]}  Rg8 {[%clk 0:01:10]} 27. Rxg8 {[%clk 0:01:54]}  Rxg8 {[%clk 0:01:11]} 28. Rf3 {[%clk 0:01:53]}  Nb8 {[%clk 0:01:08]} 29. Nc2 {[%clk 0:01:47]}  a5 {[%clk 0:01:06]} 30. Rf1 {[%clk 0:01:35]}  Nc6 {[%clk 0:01:05]} 31. Ra1 {[%clk 0:01:34]}  Rb8 {[%clk 0:01:04]} 32. h3 {[%clk 0:01:29]}  Kg6 {[%clk 0:00:59]} 33. Kh2 {[%clk 0:01:26]}  e5 {[%clk 0:00:53]} 34. Kg3 {[%clk 0:01:23]}  exf4+ {[%clk 0:00:37]} 35. exf4 {[%clk 0:01:22]}  b4 {[%clk 0:00:36]} 36. axb4 {[%clk 0:01:15]}  axb4 {[%clk 0:00:37]} 37. Ne3 {[%clk 0:01:13]}  b3 {[%clk 0:00:14]} 38. Nxd5 {[%clk 0:01:10]}  Re8 {[%clk 0:00:14]} 39. Ra6 {[%clk 0:01:08]}  Nd8 {[%clk 0:00:14]} 40. Rxf6+ {[%clk 0:01:06]}  Kg7 {[%clk 0:00:14]} 41. Kf2 {[%clk 0:01:00]}  Nf7 {[%clk 0:00:11]} 42. Rxf5 {[%clk 0:00:55]}  Nd6 {[%clk 0:00:11]} 43. Re5 {[%clk 0:00:55]}  Ra8 {[%clk 0:00:11]} 44. Re6 {[%clk 0:00:49]}  Nb5 {[%clk 0:00:08]} 45. Rc6 {[%clk 0:00:45]}  Ra2 {[%clk 0:00:07]} 46. Rxc4 {[%clk 0:00:44]}  Rxb2+ {[%clk 0:00:08]} 47. Kf3 {[%clk 0:00:44]}  Na3 {[%clk 0:00:07]} 48. Rb4 {[%clk 0:00:41]}  Nc2 {[%clk 0:00:08]} 49. Rb7+ {[%clk 0:00:40]}  Kf8 {[%clk 0:00:09]} 50. Nf6 {[%clk 0:00:39]}  Na1 {[%clk 0:00:09]} 51. d5 {[%clk 0:00:38]}  Rc2 {[%clk 0:00:09]} 52. d6 {[%clk 0:00:35]}  Rxc3+ {[%clk 0:00:10]} 53. Kg4 {[%clk 0:00:36]}  Rc6 {[%clk 0:00:09]} 54. Kf5 {[%clk 0:00:34]}  Rxd6 {[%clk 0:00:09]} 55. Kg6 {[%clk 0:00:34]}  Rxf6+ {[%clk 0:00:05]} 56. Kxf6 {[%clk 0:00:34]}  Ke8 {[%clk 0:00:06]} 57. Kg6 {[%clk 0:00:33]}  Kd8 {[%clk 0:00:06]} 58. f5 {[%clk 0:00:33]}  Kc8 {[%clk 0:00:07]} 59. Rb4 {[%clk 0:00:33]}  Kc7 {[%clk 0:00:07]} 60. f6 {[%clk 0:00:33]}  Kc6 {[%clk 0:00:08]} 61. f7 {[%clk 0:00:34]}  Kc5 {[%clk 0:00:09]} 62. Rxb3 {[%clk 0:00:33]}  Nxb3 {[%clk 0:00:08]} 63. f8=Q+ {[%clk 0:00:34]}  Kd5 {[%clk 0:00:09]} 64. Qxh6 {[%clk 0:00:34]}  Nd4 {[%clk 0:00:09]} 65. Qg5+ {[%clk 0:00:34]} 1-0


[Site "https://www.chess.com"]

[Event "Titled Tuesday Blitz February 22 Late 2022"]
[White "Kopczynski, Michal"]
[Black "Sjugirov, Sanan"]
[WhiteFideId "1124200"]
[BlackFideId "4189302"]
[WhiteElo "2235"]
[BlackElo "2602"]
[Result "0-1"]
[Round "01"]
[TimeControl "180+1"]
[Date "2022.02.22"]
[WhiteClock "0:00:04"]
[BlackClock "0:00:24"]

1. e4 {[%clk 0:02:59]}  c5 {[%clk 0:02:59]} 2. d4 {[%clk 0:02:59]}  cxd4 {[%clk 0:02:59]} 3. c3 {[%clk 0:02:59]}  d5 {[%clk 0:02:51]} 4. exd5 {[%clk 0:02:59]}  Qxd5 {[%clk 0:02:47]} 5. cxd4 {[%clk 0:02:59]}  Nc6 {[%clk 0:02:47]} 6. Nf3 {[%clk 0:02:59]}  e5 {[%clk 0:02:38]} 7. Nc3 {[%clk 0:02:58]}  Bb4 {[%clk 0:02:38]} 8. Be2 {[%clk 0:02:57]}  e4 {[%clk 0:02:25]} 9. Nd2 {[%clk 0:02:50]}  Qxd4 {[%clk 0:02:19]} 10. O-O {[%clk 0:02:47]}  Nf6 {[%clk 0:01:18]} 11. Qc2 {[%clk 0:01:26]}  O-O {[%clk 0:01:10]} 12. Ndxe4 {[%clk 0:01:13]}  Nxe4 {[%clk 0:01:08]} 13. Nxe4 {[%clk 0:01:02]}  Bf5 {[%clk 0:01:07]} 14. Bf3 {[%clk 0:00:53]}  Rfe8 {[%clk 0:01:04]} 15. a3 {[%clk 0:00:46]}  Bf8 {[%clk 0:01:01]} 16. Re1 {[%clk 0:00:40]}  Qe5 {[%clk 0:00:41]} 17. Bg5 {[%clk 0:00:19]}  Bxe4 {[%clk 0:00:35]} 18. Bxe4 {[%clk 0:00:13]}  Qxg5 {[%clk 0:00:35]} 19. Bxh7+ {[%clk 0:00:12]}  Kh8 {[%clk 0:00:36]} 20. Be4 {[%clk 0:00:10]}  Re6 {[%clk 0:00:27]} 21. Bd5 {[%clk 0:00:07]}  Qxd5 {[%clk 0:00:27]} 22. Rad1 {[%clk 0:00:05]}  Rxe1+ {[%clk 0:00:25]} 23. Rxe1 {[%clk 0:00:06]}  Kg8 {[%clk 0:00:24]} 24. g3 {[%clk 0:00:06]}  Rd8 {[%clk 0:00:24]} 25. b4 {[%clk 0:00:06]}  Nd4 {[%clk 0:00:24]} 26. Qe4 {[%clk 0:00:05]}  Nf3+ {[%clk 0:00:24]} 27. Kg2 {[%clk 0:00:04]}  Nxe1+ {[%clk 0:00:24]} 0-1


[Site "https://www.chess.com"]

[Event "Titled Tuesday Blitz February 22 Late 2022"]
[White "Koutlas, Nikolaos"]
[Black "Zakhartsov, Vladimir"]
[WhiteFideId "25827138"]
[BlackFideId "4145097"]
[WhiteElo "1610"]
[BlackElo "2432"]
[Result "0-1"]
[Round "01"]
[TimeControl "180+1"]
[Date "2022.02.23"]
[WhiteClock "0:00:05"]
[BlackClock "0:01:29"]

1. Nf3 {[%clk 0:03:00]}  d5 {[%clk 0:02:58]} 2. c4 {[%clk 0:02:59]}  d4 {[%clk 0:02:58]} 3. g3 {[%clk 0:02:58]}  Nc6 {[%clk 0:02:56]} 4. Bg2 {[%clk 0:02:57]}  a5 {[%clk 0:02:54]} 5. e3 {[%clk 0:02:56]}  e5 {[%clk 0:02:54]} 6. exd4 {[%clk 0:02:56]}  exd4 {[%clk 0:02:54]} 7. O-O {[%clk 0:02:56]}  Nf6 {[%clk 0:02:53]} 8. Re1+ {[%clk 0:02:54]}  Be7 {[%clk 0:02:52]} 9. d3 {[%clk 0:02:54]}  O-O {[%clk 0:02:51]} 10. Ne5 {[%clk 0:02:54]}  Nxe5 {[%clk 0:02:51]} 11. Rxe5 {[%clk 0:02:55]}  c6 {[%clk 0:02:52]} 12. Nd2 {[%clk 0:02:50]}  h6 {[%clk 0:02:50]} 13. h3 {[%clk 0:02:45]}  Bd6 {[%clk 0:02:46]} 14. Re1 {[%clk 0:02:44]}  Bf5 {[%clk 0:02:41]} 15. Nf3 {[%clk 0:02:15]}  Bh7 {[%clk 0:02:28]} 16. Nh2 {[%clk 0:01:39]}  Nd7 {[%clk 0:02:25]} 17. Be4 {[%clk 0:01:31]}  Bxe4 {[%clk 0:02:24]} 18. Rxe4 {[%clk 0:01:32]}  Qc7 {[%clk 0:01:59]} 19. Rxd4 {[%clk 0:01:21]}  Bc5 {[%clk 0:01:51]} 20. Rg4 {[%clk 0:01:17]}  Nf6 {[%clk 0:01:49]} 21. Bxh6 {[%clk 0:01:16]}  Nxg4 {[%clk 0:01:45]} 22. Qxg4 {[%clk 0:01:17]}  f5 {[%clk 0:01:45]} 23. Bf4 {[%clk 0:00:04]}  fxg4 {[%clk 0:01:39]} 24. Bxc7 {[%clk 0:00:05]}  Rxf2 {[%clk 0:01:33]} 25. Nxg4 {[%clk 0:00:05]}  Rf7+ {[%clk 0:01:30]} 26. d4 {[%clk 0:00:04]}  Bxd4+ {[%clk 0:01:30]} 27. Kg2 {[%clk 0:00:05]}  Rxc7 {[%clk 0:01:29]} 0-1


[Site "https://www.chess.com"]

[Event "Titled Tuesday Blitz February 22 Late 2022"]
[White "Kozak, Adam"]
[Black "Tomiello, Mateus Costamilan"]
[WhiteFideId "753246"]
[BlackFideId "22701958"]
[WhiteElo "2459"]
[BlackElo "1975"]
[Result "1-0"]
[Round "01"]
[TimeControl "180+1"]
[Date "2022.02.23"]
[WhiteClock "0:00:23"]
[BlackClock "0:00:05"]

1. Nf3 {[%clk 0:02:56]}  Nf6 {[%clk 0:03:00]} 2. c4 {[%clk 0:02:45]}  c6 {[%clk 0:02:57]} 3. e3 {[%clk 0:02:44]}  d5 {[%clk 0:02:56]} 4. Nc3 {[%clk 0:02:45]}  Bg4 {[%clk 0:02:55]} 5. cxd5 {[%clk 0:02:44]}  cxd5 {[%clk 0:02:47]} 6. Qb3 {[%clk 0:02:43]}  Bc8 {[%clk 0:02:31]} 7. d4 {[%clk 0:02:41]}  Nc6 {[%clk 0:02:31]} 8. Bd3 {[%clk 0:02:40]}  e6 {[%clk 0:02:27]} 9. O-O {[%clk 0:02:39]}  Bd6 {[%clk 0:02:27]} 10. Bd2 {[%clk 0:02:38]}  O-O {[%clk 0:02:27]} 11. Rac1 {[%clk 0:02:39]}  Na5 {[%clk 0:02:21]} 12. Qc2 {[%clk 0:02:37]}  Bd7 {[%clk 0:02:19]} 13. e4 {[%clk 0:02:34]}  dxe4 {[%clk 0:02:11]} 14. Nxe4 {[%clk 0:02:35]}  Nxe4 {[%clk 0:02:10]} 15. Bxe4 {[%clk 0:02:32]}  h6 {[%clk 0:01:48]} 16. Rfe1 {[%clk 0:02:21]}  Rc8 {[%clk 0:01:46]} 17. Bc3 {[%clk 0:02:11]}  Bc6 {[%clk 0:01:44]} 18. Rcd1 {[%clk 0:01:46]}  Bxe4 {[%clk 0:01:35]} 19. Qxe4 {[%clk 0:01:47]}  Nc4 {[%clk 0:01:22]} 20. d5 {[%clk 0:01:45]}  e5 {[%clk 0:01:12]} 21. b3 {[%clk 0:01:36]}  f5 {[%clk 0:01:06]} 22. Qe2 {[%clk 0:01:31]}  e4 {[%clk 0:01:00]} 23. bxc4 {[%clk 0:01:25]}  exf3 {[%clk 0:01:00]} 24. Qxf3 {[%clk 0:01:26]}  Rxc4 {[%clk 0:00:58]} 25. h3 {[%clk 0:01:20]}  Qc7 {[%clk 0:00:43]} 26. Ba1 {[%clk 0:01:15]}  Rf4 {[%clk 0:00:37]} 27. Qd3 {[%clk 0:00:49]}  Rc4 {[%clk 0:00:21]} 28. Re6 {[%clk 0:00:45]}  b5 {[%clk 0:00:22]} 29. Rg6 {[%clk 0:00:43]}  Be5 {[%clk 0:00:19]} 30. d6 {[%clk 0:00:42]}  Qc5 {[%clk 0:00:19]} 31. Bxe5 {[%clk 0:00:38]}  Qxe5 {[%clk 0:00:19]} 32. d7 {[%clk 0:00:39]}  Rd8 {[%clk 0:00:19]} 33. Rd6 {[%clk 0:00:38]}  Re4 {[%clk 0:00:18]} 34. g3 {[%clk 0:00:33]}  Re1+ {[%clk 0:00:17]} 35. Rxe1 {[%clk 0:00:34]}  Qxe1+ {[%clk 0:00:18]} 36. Kg2 {[%clk 0:00:32]}  Qe4+ {[%clk 0:00:18]} 37. Qxe4 {[%clk 0:00:31]}  fxe4 {[%clk 0:00:19]} 38. Rd5 {[%clk 0:00:31]}  Kf7 {[%clk 0:00:18]} 39. Rxb5 {[%clk 0:00:29]}  Rxd7 {[%clk 0:00:18]} 40. Rb4 {[%clk 0:00:29]}  Re7 {[%clk 0:00:18]} 41. Kf1 {[%clk 0:00:29]}  Kf6 {[%clk 0:00:19]} 42. Ke2 {[%clk 0:00:30]}  Ke5 {[%clk 0:00:16]} 43. Ke3 {[%clk 0:00:29]}  Rd7 {[%clk 0:00:16]} 44. Rxe4+ {[%clk 0:00:29]}  Kf5 {[%clk 0:00:16]} 45. Rd4 {[%clk 0:00:29]}  Rc7 {[%clk 0:00:15]} 46. Ra4 {[%clk 0:00:28]}  Re7+ {[%clk 0:00:14]} 47. Kf3 {[%clk 0:00:28]}  Rb7 {[%clk 0:00:13]} 48. Ra5+ {[%clk 0:00:28]}  Ke6 {[%clk 0:00:12]} 49. Kg4 {[%clk 0:00:28]}  g6 {[%clk 0:00:11]} 50. f4 {[%clk 0:00:27]}  Kf6 {[%clk 0:00:11]} 51. Kh4 {[%clk 0:00:27]}  h5 {[%clk 0:00:09]} 52. Ra6+ {[%clk 0:00:27]}  Kf7 {[%clk 0:00:09]} 53. Kg5 {[%clk 0:00:27]}  Rb5+ {[%clk 0:00:09]} 54. Kh6 {[%clk 0:00:27]}  Rb6 {[%clk 0:00:08]} 55. Rxa7+ {[%clk 0:00:26]}  Kf6 {[%clk 0:00:09]} 56. Rg7 {[%clk 0:00:25]}  Kf5 {[%clk 0:00:09]} 57. Rf7+ {[%clk 0:00:24]}  Ke6 {[%clk 0:00:08]} 58. Kxg6 {[%clk 0:00:23]}  h4 {[%clk 0:00:05]} 59. g4 {[%clk 0:00:23]} 1-0


[Site "https://www.chess.com"]